Cogmind - Beta 13 @@@ ROGUE MODE // 2024.04.04 @ 17:21:19 Player: ossi Result: Destroyed by P-60 Hacker with Shock Rifle Performance ------------- Evolutions (3) 1500 Regions Visited (5) 1000 Robots Destroyed (113) 565 Value Destroyed (3008) 3008 Prototype IDs (6) 120 Alien Tech Used (0) 0 Bonus (255) 255 TOTAL SCORE: 6448 Bonus ------- High Alert Combat Kills 280 Friendly Fire -25 Cogmind --------- Core Integrity 0/700 Matter 30/300 Energy 100/100 System Corruption 10% Temperature Cool (0) Movement Core (700) Ox13 Location -7/Factory Parts ------- > --- POWER (1) -------- (None) > --- PROPULSION (4) --- (None) > --- UTILITY (5) ------ High-capacity Storage Unit Terrain Scan Processor Improved Terrain Scan Processor > --- WEAPON (3) ------- (None) > --- INVENTORY (20) --- Heavy Ion Engine Heavy Ion Engine Light Nuclear Core Improved Deuterium Engine High-capacity Storage Unit High-capacity Storage Unit Advanced Weight Redist. System Particle Charger Improved Field Recycling Unit (0) Arc Projector Heavy Assault Rifle Subdweller Machine Gun Enhanced Autogun Assault Cannon Assault Cannon Assault Cannon Flak Cannon Improved Datajack Mining Laser Peak State ------------ > --- POWER ------------ Nuclear Core > --- PROPULSION ------- Medium Treads Medium Treads Medium Treads Medium Treads > --- UTILITY ---------- High-capacity Storage Unit Improved Terrain Scanner Terrain Scan Processor Hardened Medium Armor Plating > --- WEAPON ----------- Shock Rifle Heavy Particle Gun > --- INVENTORY -------- Ion Engine Reinforced Ion Engine Light Deuterium Engine Light Treads Light Treads Light Treads Light Treads High-capacity Storage Unit Seismic Detector Seismic Detector Improved Light Armor Plating Improved Light Armor Plating System Shield Light EM Pulse Cannon Heavy Assault Rifle Subdweller Machine Gun Minigun Enhanced Autogun Mining Laser [Rating: 38] Favorites ----------- Power Light Ion Engine Engine Light Ion Engine Power Core Nuclear Core Propulsion Light Treads Treads Light Treads Utility High-capacity Storage Unit Device Seismic Detector Storage High-capacity Storage Unit Processor Terrain Scan Processor Hackware System Shield Protection Improved Light Armor Plating Weapon Assault Cannon Energy Gun Medium Laser Energy Cannon Beam Cannon Ballistic Gun Light Assault Rifle Ballistic Cannon Assault Cannon Launcher Improved Grenade Launcher Special Weapon Mining Laser Build | -11 -10 -10 -8 -8 -7 ------- Run | Yrd Mat Sub Mat Sto Fac Slots Evolved 6 | . . . 4 . 2 Power . | . . . . . . Propulsion 2 | . . . 2 . . Utility 3 | . . . 2 . 1 Weapon 1 | . . . . . 1 Parts Attached 114 | 9 18 4 46 29 8 Power 12 | 2 1 1 6 2 . Engine 9 | 2 1 1 3 2 . Core 3 | . . . 3 . . Reactor . | . . . . . . Propulsion 24 | 2 . 2 12 8 . Treads 24 | 2 . 2 12 8 . Leg . | . . . . . . Wheel . | . . . . . . Hover . | . . . . . . Flight . | . . . . . . Utility 37 | 2 8 . 14 10 3 Device 20 | 1 4 . 7 6 2 Storage 7 | 1 4 . 1 1 . Processor 4 | . . . 1 2 1 Hackware 1 | . . . 1 . . Protection 5 | . . . 4 1 . Artifact . | . . . . . . Weapon 41 | 3 9 1 14 9 5 Energy Gun 13 | 2 2 . 6 2 1 Energy Cannon 2 | . 2 . . . . Ballistic Gun 5 | 1 1 1 2 . . Ballistic Cannon 7 | . . . 3 3 1 Launcher 7 | . 1 . 1 3 2 Special Weapon 7 | . 3 . 2 1 1 Impact Weapon . | . . . . . . Slashing Weapon . | . . . . . . Piercing Weapon . | . . . . . . Special Melee Weapon . | . . . . . . Unidentified Prototypes 4 | . . . 2 2 . Parts Lost 28 | . 3 1 4 10 10 Power 3 | . 1 1 . . 1 Propulsion 10 | . . . 3 3 4 Utility 6 | . . . . 5 1 Weapon 9 | . 2 . 1 2 4 Highest Loss Streak 8 | . 2 1 3 5 8 To Critical Strikes 1 | . . . . 1 . Average Slot Usage (%) 98 | . 99 100 99 95 92 Engine 9 | . 13 14 4 8 6 Core 1 | . . . 4 . . Treads 31 | . 28 28 35 34 25 Device 13 | . 14 14 13 13 12 Storage 10 | . 14 14 9 9 7 Processor 4 | . . . 4 10 16 Protection 2 | . . . 6 1 . Energy Gun 8 | . 14 14 7 1 6 Ballistic Gun 2 | . 3 13 1 . . Ballistic Cannon 6 | . . . 7 12 9 Launcher 1 | . 1 . . 1 3 Special Weapon 2 | . 5 . 1 2 . Naked Turns . | . . . . . . Heaviest Build 67 | 14 51 52 67 67 67 Greatest Support 112 | 40 40 40 112 89 82 Greatest Overweight (x) 17 | . 1 1 . 1 17 Average Overweight (x) . | . . 1 . . . Largest Inventory Capacity 20 | 8 20 20 20 20 20 Average Capacity 19 | 7 19 20 20 20 20 Most Carried 20 | 8 20 20 20 20 20 Average Carried 18 | 4 16 19 19 19 19 Final Capacity 20 | 8 20 20 20 20 20 Final Carried 20 | 8 20 20 19 20 19 Class Distribution -------------------- 61% | Mutant 30% | Scavenger-Mutant 5% | Skirmisher Dominant Class ---------------- Mutant | -10/Materials Mutant | -10/Subcaves Mutant | -8/Materials Scavenger-Mutant | -8/Storage Skirmisher | -7/Factory Resources | -11 -10 -10 -8 -8 -7 ----------- Run | Yrd Mat Sub Mat Sto Fac Matter Collected 2503 | 340 265 132 1088 662 16 Remotely . | . . . . . . Salvage Created 3374 | 133 371 79 1492 838 461 Parts 191 | 11 34 5 82 37 22 Haulers Intercepted 4 | . 1 . 2 1 . Recyclers Shooed 9 | . 2 . 4 2 1 Parts Field Recycled . | . . . . . . Retrieved Matter . | . . . . . . Parts Self-Destructed 7 | . . 7 . . . Prevented . | . . . . . . Kills | -11 -10 -10 -8 -8 -7 ------- Run | Yrd Mat Sub Mat Sto Fac Combat Hostiles Destroyed 75 | . 13 2 30 22 8 Guns 18 | . 1 2 13 1 1 Cannons 28 | . . . 11 17 . AOE 28 | . 12 . 5 4 7 Classes Destroyed 13 | 3 5 1 3 . 1 Worker 8 | 1 . . 3 2 2 Builder 8 | . 4 . 2 . 2 Tunneler 2 | 2 . . . . . Hauler 4 | . 1 . 2 1 . Recycler 10 | 1 1 . 3 3 2 Watcher 6 | . 3 . 3 . . Swarmer 20 | . 9 . 4 7 . Grunt 36 | . 4 . 18 7 7 Brawler 2 | . . . 2 . . Duelist 1 | . . . . . 1 Sentry 12 | . . . 5 7 . Hunter 2 | . . . 1 1 . Subdweller 2 | . . 2 . . . Best Kill Streak 12 | 3 12 2 5 7 8 Combat Bots Only 7 | . 7 2 4 7 6 Max Kills in Single Turn 4 | 1 3 1 2 2 4 Gunslinging . | . . . . . . Exploded 3 | . 3 . 2 2 3 Melee . | . . . . . . Uniques/NPCs Destroyed . | . . . . . . Combat | -11 -10 -10 -8 -8 -7 -------- Run | Yrd Mat Sub Mat Sto Fac Hostile Shots Fired 559 | . 32 21 211 122 173 Missed 151 | . 9 6 51 26 59 Damage Taken 5943 | . 316 356 2333 1122 1816 Core 1110 | . 37 32 245 96 700 Absorbed by Shields 112 | . . . 12 100 . Core Remaining (%) 70 | 100 . 72 . 38 . Volleys Fired 278 | 5 54 14 127 56 22 Largest 3 | 2 2 2 2 2 3 Hottest 155 | 80 150 150 155 144 130 Shots Fired 535 | 10 104 28 246 109 38 Gun 288 | 10 58 27 149 24 20 Cannon 170 | . 9 . 79 75 7 Launcher 40 | . 15 . 10 6 9 Special 37 | . 22 1 8 4 2 Kinetic 209 | . 8 13 106 75 7 Thermal 239 | 5 70 15 115 28 6 Explosive 38 | . 15 . 10 6 7 Electromagnetic 49 | 5 11 . 15 . 18 Robot Hit Streak 12 | 8 11 7 12 11 5 Robot Miss Streak 11 | 1 4 3 7 11 3 Penetration Max . | . . . . . . Secondary Targets 1 | . . . 1 . . Max Gunslinging Chain 1 | . . . 1 . . Shots Hit Robots 274 | 8 31 19 136 67 13 Core Hits 231 | 4 32 3 90 80 22 Critical Kills . | . . . . . . Critical Parts Destroyed . | . . . . . . Critical Strikes 12 | . 3 2 6 1 . Burn 8 | . 2 2 4 . . Blast 3 | . . . 2 1 . Corrupt 1 | . 1 . . . . Melee Attacks . | . . . . . . Impact . | . . . . . . Slashing . | . . . . . . Piercing . | . . . . . . Sneak Attacks . | . . . . . . Combat Hostiles . | . . . . . . Follow-up Attacks . | . . . . . . Damage Inflicted 8002 | 101 1325 396 3136 1590 1454 Guns 2596 | 101 269 396 1396 175 259 Cannons 2442 | . 104 . 1237 1047 54 Explosions 2865 | . 952 . 479 293 1141 Melee . | . . . . . . Ramming 27 | . . . . 27 . Kinetic 2842 | . 36 269 1436 1047 54 Thermal 2352 | 45 313 127 1099 223 545 Explosive 2064 | . 852 . 479 293 440 Electromagnetic 717 | 56 124 . 122 . 415 Impact . | . . . . . . Slashing . | . . . . . . Piercing . | . . . . . . Highest Corruption 10 | . . . . . 10 Average Corruption 7 | . . . . . 7 Corruption Purged . | . . . . . . Corruption Blocked . | . . . . . . Effects 21 | . . . . . 21 Message Errors 7 | . . . . . 7 Matter Fused 8 | . . . . . 8 Heat Flow Errors 2 | . . . . . 2 Energy Discharges 1 | . . . . . 1 Parts Rejected 1 | . . . . . 1 Data Loss (minor) 2 | . . . . . 2 Overload Shots . | . . . . . . Overflow Damage 117 | . 37 . 30 11 39 Projectiles 29 | . . . 25 4 . Explosions 84 | . 37 . 5 3 39 Melee 4 | . . . . 4 . Knockbacks 65 | . . . 33 32 . Impact . | . . . . . . Kinetic 59 | . . . 30 29 . Secondary 6 | . . . 3 3 . Self-Inflicted Damage 213 | . 64 . 73 43 33 Shots 9 | . 3 . 2 2 2 Rammed 2 | . . . . 2 . Targets Rammed 2 | . . . . 2 . Kicked . | . . . . . . Crushed . | . . . . . . Highest Temperature 474 | 36 100 . 474 309 331 Average Temperature 85 | 15 38 . 112 72 106 Received Heat Transfer 2108 | . 66 . 892 376 774 Effects 11 | . . . 8 . 3 Shutdowns 2 | . . . 2 . . Energy Bleed 2 | . . . 2 . . Interference 6 | . . . 3 . 3 Short Circuit 1 | . . . 1 . . Siege Activations . | . . . . . . Robots Corrupted . | . . . . . . Combat Hostiles . | . . . . . . Parts Fried 3 | . . . . . 3 Impact Corruptions 1 | . . . . 1 . Robots Melted 1 | . . . 1 . . Combat Hostiles 1 | . . . 1 . . Parts Melted 6 | . 2 2 1 . 1 Heat Transferred 4944 | 100 829 518 2455 544 498 Parts Sabotaged . | . . . . . . Parts Stolen . | . . . . . . Parts Stripped . | . . . . . . Power Chain Reactions 2 | . 1 . . . 1 Alert | -11 -10 -10 -8 -8 -7 ------- Run | Yrd Mat Sub Mat Sto Fac Peak Influence 651 | 20 457 . 651 579 330 Initial 272 | . 13 . . 272 134 Average 226 | 8 87 . 262 424 168 Maximum Alert Level 2 | . 2 . 2 2 1 Low Security (%) 45 | 100 77 . 35 . 66 Level 1 33 | . 21 . 39 45 33 Level 2 20 | . . . 25 54 . Level 3 . | . . . . . . Level 4 . | . . . . . . Level 5 . | . . . . . . High Security . | . . . . . . Max Security . | . . . . . . Squads Dispatched 9 | . 1 . 4 3 1 Investigation 2 | . . . 1 1 . Extermination . | . . . . . . Reinforcement 6 | . 1 . 2 2 1 Assault 1 | . . . 1 . . Garrison . | . . . . . . Intercept . | . . . . . . Searches Triggered . | . . . . . . Construction Impeded 2 | . . . 1 . 1 Haulers Reinforced . | . . . . . . Active Scanning Responses . | . . . . . . Cargo Convoy Interrupts . | . . . . . . Stealth | -11 -10 -10 -8 -8 -7 --------- Run | Yrd Mat Sub Mat Sto Fac Distress Signals 8 | . 2 . 4 2 . Communications Jammed . | . . . . . . Distress Signals . | . . . . . . Times Spotted 138 | . 25 8 51 39 15 Peak Tracking Total 8 | . 8 5 6 8 5 Tactical Retreats 13 | . 1 2 9 1 . Traps | -11 -10 -10 -8 -8 -7 ------- Run | Yrd Mat Sub Mat Sto Fac Traps Triggered 9 | . 1 . 1 2 5 Indirectly . | . . . . . . Trap Hack Attempts . | . . . . . . Triggered . | . . . . . . Disarmed . | . . . . . . Reprogrammed . | . . . . . . Reused . | . . . . . . Traps Extracted . | . . . . . . Installed . | . . . . . . Triggered . | . . . . . . Machines | -11 -10 -10 -8 -8 -7 ---------- Run | Yrd Mat Sub Mat Sto Fac Machines Disabled 6 | . . . 2 1 3 Max in Single Turn 3 | . . . 1 1 3 Machines Repaired . | . . . . . . Machines Dismantled . | . . . . . . Machines Sabotaged . | . . . . . . Overloaded Fab Kills . | . . . . . . Hacking | -11 -10 -10 -8 -8 -7 --------- Run | Yrd Mat Sub Mat Sto Fac Machines Accessed 26 | . 9 . 9 5 3 Terminals 24 | . 7 . 9 5 3 Fabricators . | . . . . . . Repair Stations . | . . . . . . Recycling Units 2 | . 2 . . . . Scanalyzers . | . . . . . . Garrison Access . | . . . . . . Total Hacks 60 | . 23 . 20 11 6 Successful 32 | . 8 . 15 8 1 Failed 28 | . 15 . 5 3 5 Catastrophic 1 | . . . . 1 . Database Lockouts . | . . . . . . Manual 3 | . . . . 3 . Terminals 52 | . 15 . 20 11 6 Fabricators . | . . . . . . Repair Stations . | . . . . . . Recycling Units 8 | . 8 . . . . Scanalyzers . | . . . . . . Garrison Access . | . . . . . . Terminal Hacks 28 | . 4 . 15 8 1 Record 5 | . . . 1 4 . Robot Analysis 1 | . . . 1 . . Prototype ID Bank 1 | . . . 1 . . Open Door 1 | . . . . 1 . Emergency Access Points 3 | . . . 1 1 1 Alert Level 7 | . 2 . 4 1 . Unreport Threat 1 | . . . . 1 . Dispatch Records 3 | . . . 3 . . Surveillance Status 1 | . 1 . . . . Investigation Status 1 | . . . 1 . . Hauler Manifests 2 | . 1 . 1 . . Registered Components 1 | . . . 1 . . Zone Layout 1 | . . . 1 . . Fabricator Hacks . | . . . . . . Repair Station Hacks . | . . . . . . Recycling Unit Hacks 4 | . 4 . . . . Process 2 | . 2 . . . . Report Inventory 2 | . 2 . . . . Scanalyzer . | . . . . . . Garrison Access Hacks . | . . . . . . Unauthorized Hacks . | . . . . . . Terminals . | . . . . . . Fabricators . | . . . . . . Repair Stations . | . . . . . . Recycling Units . | . . . . . . Scanalyzers . | . . . . . . Garrison Access . | . . . . . . Data Cores Recovered . | . . . . . . Used . | . . . . . . Hacking Detections 19 | . 6 . 5 5 3 Full Trace Events 2 | . 1 . . 1 . Feedback Events . | . . . . . . Feedback Blocked . | . . . . . . Robot Schematics Acquired . | . . . . . . Robots Built . | . . . . . . Authchips . | . . . . . . Time . | . . . . . . Total Robot Build Rating . | . . . . . . Part Schematics Acquired . | . . . . . . Parts Built . | . . . . . . Authchips . | . . . . . . Time . | . . . . . . Total Part Build Rating . | . . . . . . Parts Repaired . | . . . . . . Time . | . . . . . . Parts Recycled . | . . . . . . Recycled Matter 194 | . 194 . . . . Retrieved Matter . | . . . . . . Retrieved Components . | . . . . . . Parts Scanalyzed . | . . . . . . Part Schematics Acquired . | . . . . . . Parts Damaged . | . . . . . . Bothacking | -11 -10 -10 -8 -8 -7 ------------ Run | Yrd Mat Sub Mat Sto Fac Used RIF Installer . | . . . . . . Robots Hacked . | . . . . . . Non-combat . | . . . . . . Combat . | . . . . . . Robot Hacks Applied . | . . . . . . Relay Couplers Released . | . . . . . . Fabnet Peak Effective % . | . . . . . . Robots Rewired . | . . . . . . Allies Hacked . | . . . . . . Hacks Repelled . | . . . . . . Allies | -11 -10 -10 -8 -8 -7 -------- Run | Yrd Mat Sub Mat Sto Fac Total Allies . | . . . . . . Largest Group . | . . . . . . Highest-Rated Group . | . . . . . . Highest-Rated Ally . | . . . . . . Total Orders . | . . . . . . Ally Attacks . | . . . . . . Total Damage . | . . . . . . Kills . | . . . . . . Allies Corrupted . | . . . . . . Allies Melted . | . . . . . . Intel | -11 -10 -10 -8 -8 -7 ------- Run | Yrd Mat Sub Mat Sto Fac Robot Analysis Total 1 | . . . 1 . . Derelict Logs Recovered . | . . . . . . Drone Launches . | . . . . . . Drone Recoveries . | . . . . . . Exploration | -11 -10 -10 -8 -8 -7 ------------- Run | Yrd Mat Sub Mat Sto Fac Turns Passed 8756 | 130 2795 424 2885 1775 747 Spaces Moved 3325 | 58 1022 155 1194 543 353 Core 10 | 3 . . . . 7 Treads 3315 | 55 1022 155 1194 543 346 Legs . | . . . . . . Wheels . | . . . . . . Hover . | . . . . . . Flight . | . . . . . . Fastest Speed 50 | 50 160 240 160 156 156 Average Speed 188 | 154 234 240 160 160 178 Slowest Speed 900 | 160 240 240 160 240 900 Overloaded Moves . | . . . . . . Propulsion Burnouts . | . . . . . . Robots Hopped . | . . . . . . Cave-ins Triggered . | . . . . . . Exploration Rate (%) 41 | 5 99 13 58 63 12 Regions Visited 5 Branch Regions 2 Pre-discovered Areas . | . . . . . . Known Exits Taken . | . . . . . . Unknown Exits Taken 5 | 1 1 1 1 1 . Scrap Searched . | . . . . . . Spaces Dug 32 | . 22 . 7 3 . Terrain Destroyed 326 | . 110 . 90 64 62 Melee . | . . . . . . Projectile 46 | . 22 . 14 10 . AOE 280 | . 88 . 76 54 62 Terrain Rammed . | . . . . . . Walls Destroyed . | . . . . . . Machines Disabled . | . . . . . . Actions | -11 -10 -10 -8 -8 -7 --------- Run | Yrd Mat Sub Mat Sto Fac Total 5217 | 88 1276 178 1917 1324 434 Wait 1333 | . 152 . 476 666 39 Move 3320 | 57 1021 154 1193 542 353 Hop . | . . . . . . Pick Up 111 | 16 23 3 42 20 7 Fast Attach . | . . . . . . Attach 44 | 7 3 1 14 15 4 Detach 3 | . . . 1 1 1 Swap 70 | 2 15 3 32 14 4 Drop 55 | 1 8 3 32 7 4 Fire 278 | 5 54 14 127 56 22 Melee . | . . . . . . Ram . | . . . . . . Kick . | . . . . . . Crush 2 | . . . . 2 . Escape Stasis . | . . . . . . Rewire 1 | . . . . 1 . Trap . | . . . . . . Miscellaneous . | . . . . . . Route ------- -11/Scrapyard -10/Materials (discovered 6 exits: [*Mat x3] / [*Min x2] / [*Sub]) -10/Subcaves -8/Materials (discovered 2 exits: *Fac / *Sto) -8/Storage -7/Factory History --------- Turn | Location | Event 45 | -11/Scrapyard | Discovered new exit (range 15) 131 | -11/Scrapyard | Entered Materials 310 | -10/Materials | Build established: Mutant 331 | -10/Materials | Destroyed 7 combat bots 637 | -10/Materials | Discovered new exit (range 6) 1005 | -10/Materials | Discovered new exit (range 16) 1388 | -10/Materials | Discovered new exit (range 10) 2016 | -10/Materials | Discovered new exit (range 9) 2515 | -10/Materials | Discovered new exit (range 12) 2904 | -10/Materials | Discovered new exit (range 7) 2926 | -10/Materials | Entered Subcaves 2927 | -10/Subcaves | Shifting Twisted Machinery released Hvy. Battle Rifle 3096 | -10/Subcaves | Ambushed by swarm of Subdwellers 3097 | -10/Subcaves | Discovered new exit (range 12) 3159 | -10/Subcaves | Lost 4 allies 3245 | -10/Subcaves | Shifting Twisted Machinery released Sub. Beam Cannon 3292 | -10/Subcaves | Shifting Twisted Machinery released Sub. Laser 3350 | -10/Subcaves | Entered Materials 3350 | -8/Materials | Evolved 4 slots: Propulsion x2, Utility x2 3812 | -8/Materials | Discovered new exit (range 8) 4530 | -8/Materials | Discovered new exit (range 4) 4852 | -8/Materials | Lost 3 parts (3n) 6099 | -8/Materials | Build established: Scavenger-Mutant 6150 | -8/Materials | First assault squad dispatched 6235 | -8/Materials | Entered Storage 6720 | -8/Storage | Core integrity fell below 50% 6752 | -8/Storage | Destroyed 7 combat bots 7211 | -8/Storage | Lost 5 parts (2n2u1w) 7453 | -8/Storage | Discovered new exit (range 16) 8010 | -8/Storage | Entered Factory 8010 | -7/Factory | Evolved 2 slots: Utility x1, Weapon x1 8515 | -7/Factory | Build established: Skirmisher 8728 | -7/Factory | Core integrity fell below 50% 8728 | -7/Factory | System corruption reached 10% 8749 | -7/Factory | Core integrity fell below 20% 8757 | -7/Factory | Destroyed by P-60 Hacker with Shock Rifle Last Messages --------------- R-06 Scavenger collects Corrupted Aluminum Leg. K-01 Serf collects debris. R-06 Scavenger collects Aluminum Leg. Hvy. Particle Gun destroyed. R-06 Scavenger collects Wheel. K-01 Serf collects debris. P-60 Hacker resets R-06 Scavenger, system corruption cleaned. System corrupted: Imp. Terrain Scanner rejected. P-60 Hacker resets G-47 Trooper, system corruption cleaned. P-60 Hacker resets K-01 Serf, system corruption cleaned. M-13 Machinist repairs Imp. Heat Sink. R-06 Scavenger collects Imp. Terrain Scanner. Hvy. Ion Engine destroyed. [Achievement: System Compromised] Seismic Detector destroyed. V6=#NSOSA4EHYNE9HX5JNFT0QKPOJ7D9:J3UH89Q [Achievement: 5k Club] Map ----- +----------------------------------------------------+ | ##+##?### # ????????????????? | | #? ###### [ # ????????????????? | | ## ###### + ??????????????? | | ## #?#### # ? ???????????????? | | ## ###### # ?????????????????? | | "# ###### # #####???????????????? | | # # # ##??##??????????????? | | # # ! # # #?##?##?????????????? | | ## # ]####+######### # ? ???????????? | | # # # # ?? ???????????? | | # # !! # # ??"?? ???????????? | | + # !! """ ! + +? "?? ???????????? | | # """ # % m k# ?"?? ???????????? | | ! % # """ #u # ? ? ?????????? | | %=%[ # # # ? ?"" "???????????? | | %%###### """ """ # % #? "?? ????????????? | | ! / """ """ # # ? """ ""??????????? | | ######## """ """ # # ? ? ? ??????????? | | /# # # #? ???? ????????? | | ## # ""T"" # u # ?? ? ?????????? | | """## ## """"" # #?#?###?#???????????? | | """################### gp k #?##??# ###?????????? | | """### ####### g #??#??#???#?????????? | | """### ? #######w ##?#?#??????????????? | | """##? ####?##k #####?? ??#?????????? | | """### #?? # r @ r #?#?????????? | | ###########+# # ^ ????????? | | ############## # ?# k ????????? | | ############## ? # ^ """ ?????????? | | # ? #? ?# !! """ "" ?????????? | | ""#? ? ? # # !! """ ""???????????? | | T"# ?? ?? # ^ T????????????? | | ""# ??? ?? #? ? # ??"????????????? | | ? ?#???? ????? ?# r ???????????????? | | ?"""?? ?? ???#??????### !???????????????? | | "???# ? ?????? ??????# =???????????????? | | """ #???? ???????????# ######???????????????? | | #? ??????????????+ #????????????????????? | | #+#?#?????????????????# #????????????????????? | | ??????????????????# #????????????????????? | | ??????????????????? ?????????????????????? | | ?????????????????????????????????????????????? | | ?????????????????????????????????????????????? | | ?????????????????????????????????????????????? | | ??????????????????????????????????????????????? | | ? ???????????????????????????????????????????????? | | ?? ??????????????????????????????????????????????? | | ???????????????????????????????????????????????? | | ????????????????????????????????????????????????? | | ?????????????????????????????????????????????????? | +----------------------------------------------------+ Best States ------------- Heat Dissipation 34 Energy Generation 14 Energy Capacity 280 Matter Stores 300 Matter Capacity 300 Sight Range 16 Terrain Scan Range 16 Terrain Scan Density 185 Additional Mass Support 9 Armor Coverage 225 Evasion (%) 40 Targeting Accuracy 6 Recoil Reduction 4 Particle Charging 15 Defensive Hacking 10 Item Schematics ----------------- None Robot Schematics ------------------ None Fabricated ------------ Nothing Alien Tech Used ----------------- None Achievements -------------- 5k Club Everything Is Under Control Hey, That's Mine! It's Just You Made in Tau Ceti IV Omniscient Cartographer One Hack Too Far Oops Remodeling Significant Disruption System Compromised Challenges ------------ None Game ------ Seed ActuatorShieldRecalibrator Manual? 0 Play Time 02:29:37 Cumulative 3.8 hours Start 2024.04.04 @ 14:18:48 End 2024.04.04 @ 17:21:19 Sessions 9 Manual Loads 0 Difficulty Rogue Special Mode None Game No. 3 Rogue 3 Adventurer 0 Explorer 0 Win Type - Total 0 Types 0/0/0/0/0/0/0/0/0 Lore% 2 Gallery% 5 Achievement% 9 Wizard Run 0 Options --------- Layout 1 ASCII 0 Keyboard 1 Movement Arrows Keybinds 1 Fullscreen 1 Font 24/Smallcaps Map View 50x35 Zoom Use 0% Tactical HUD 0 Map Filters NONE Filters NONE Steam 1 RUN: 79faa821-5fc1-4903-8bda-eaebf0b2d797